fUSD/lending_fUSD_20250916
["ID","MTS","AMOUNT","RATE_DAILY","PERIOD"]
[385816833,1758055912428,-400.0,0.00032054,6]
[385816834,1758055912438,-400.0,0.00032054,6]
[385816835,1758055912447,-400.0,0.00032054,6]
[385816836,1758055912456,-400.0,0.00032054,6]
[385816837,1758055912466,-400.0,0.00032054,6]
[385816838,1758055912475,-400.0,0.00032054,6]
[385816839,1758055912485,-400.0,0.00032054,6]
[385816840,1758055912496,-400.0,0.00032054,6]
[385816841,1758055912506,-400.0,0.00032054,6]
[385816842,1758055912515,-400.0,0.00032054,6]
[385816843,1758055912525,-400.0,0.00032054,6]
[385816844,1758055912534,-400.0,0.00032054,6]
[385816845,1758055912544,-374.31944256,0.00032054,6]
[385816846,1758055912553,-400.0,0.00032054,6]
[385816847,1758055912562,-466.99,0.00032054,6]
[385816848,1758055912571,-412.81137897,0.00032054,6]
[385816849,1758055912581,-400.0,0.00032054,6]
[385816850,1758055912590,-400.0,0.00032054,6]
[385816851,1758055912599,-400.0,0.00032054,6]
[385816852,1758055912609,-588.47,0.00032054,6]
[385816853,1758055912619,-400.0,0.00032054,6]
[385816854,1758055912629,-400.0,0.00032054,6]
[385816855,1758055912638,-400.0,0.00032054,6]
[385816856,1758055912648,-484.3186523,0.00032054,6]
[385816857,1758055912657,-400.0,0.00032054,6]
[385816858,1758055912666,-400.0,0.00032054,6]
[385816859,1758055912675,-400.0,0.00032054,6]
[385816860,1758055912685,-400.0,0.00032054,6]
[385816861,1758055912695,-400.0,0.00032054,6]
[385816862,1758055912704,-400.0,0.00032054,6]
[385816863,1758055912713,-400.0,0.00032054,6]
[385816864,1758055912723,-370.84445862,0.00032054,6]
[385816865,1758055912732,-400.0,0.00032054,6]
[385816866,1758055912742,-286.96798403,0.00032054,6]
[385816867,1758055912751,-400.0,0.00032054,6]
[385816868,1758055912761,-400.0,0.00032054,6]
[385816869,1758055912771,-535.52511729,0.00032054,6]
[385816870,1758055912780,-486.93545516,0.00032054,6]
[385816871,1758055912790,-404.580271,0.00032054,6]
[385816872,1758055912799,-400.0,0.00032054,6]
[385816873,1758055912809,-400.0,0.00032054,6]
[385816874,1758055912818,-448.17,0.00032054,6]
[385816875,1758055912827,-400.0,0.00032054,6]
[385816876,1758055912837,-439.12,0.00032054,6]
[385816877,1758055912847,-901.58,0.00032054,6]
[385816878,1758055912857,-400.0,0.00032054,6]
[385816879,1758055912867,-568.53,0.00032054,6]
[385816880,1758055912877,-400.0,0.00032054,6]
[385816881,1758055912887,-400.0,0.00032054,6]
[385816882,1758055912896,-583.89,0.00032054,6]
[385816883,1758055912908,-400.0,0.00032054,6]
[385816884,1758055912919,-400.0,0.00032054,6]
[385816885,1758055912928,-400.0,0.00032054,6]
[385816886,1758055912938,-400.0,0.00032054,6]
[385816887,1758055912947,-614.16,0.00032054,6]
[385816888,1758055912957,-400.0,0.00032054,6]
[385816889,1758055912967,-400.0,0.00032054,6]
[385816890,1758055912976,-390.30405321,0.00032054,6]
[385816891,1758055912986,-677.09,0.00032054,6]
[385816892,1758055912995,-400.0,0.00032054,6]
[385816893,1758055913005,-442.39,0.00032054,6]
[385816894,1758055913014,-437.71,0.00032054,6]
[385816895,1758055913023,-771.61,0.00032054,6]
[385816896,1758055913033,-400.0,0.00032054,6]
[385816897,1758055913042,-933.64,0.00032054,6]
[385816898,1758055913052,-400.0,0.00032054,6]
[385816899,1758055913061,-241.10171372,0.00032054,6]
[385816900,1758055913070,-555.07,0.00032054,6]
[385816901,1758055913081,-400.0,0.00032054,6]
[385816902,1758055913091,-400.0,0.00032054,6]
[385816903,1758055913100,-400.0,0.00032054,6]
[385816904,1758055913110,-400.0,0.00032054,6]
[385816905,1758055913120,-400.0,0.00032054,6]
[385816906,1758055913130,-438.36,0.00032054,6]
[385816907,1758055913140,-405.33141561,0.00032054,6]
[385816908,1758055913149,-224.54864191,0.00032054,6]
[385816909,1758055913159,-584.99,0.00032054,6]
[385816910,1758055913168,-400.0,0.00032054,6]
[385816911,1758055913178,-433.4,0.00032054,6]
[385816912,1758055913187,-400.0,0.00032054,6]
[385816913,1758055913197,-400.0,0.00032054,6]
[385816914,1758055913207,-400.0,0.00032054,6]
[385816915,1758055913216,-400.0,0.00032054,6]
[385816916,1758055913225,-400.0,0.00032054,6]
[385816917,1758055913235,-400.22,0.00032054,6]
[385816918,1758055913245,-400.0,0.00032054,6]
[385816919,1758055913255,-400.0,0.00032054,6]
[385816920,1758055913265,-522.09196772,0.00032054,6]
[385816921,1758055913275,-400.0,0.00032054,6]
[385816922,1758055913285,-815.51,0.00032054,6]
[385816923,1758055913295,-400.0,0.00032054,6]
[385816924,1758055913305,-400.0,0.00032054,6]
[385816925,1758055913314,-400.0,0.00032054,6]
[385816926,1758055913324,-400.0,0.00032054,6]
[385816927,1758055913334,-667.42,0.00032054,6]
[385816928,1758055913344,-454.53,0.00032054,6]
[385816929,1758055913357,-512.12,0.00032054,6]
[385816930,1758055913366,-400.0,0.00032054,6]
[385816931,1758055913375,-400.0,0.00032054,6]
[385816932,1758055913385,-461.69,0.00032054,6]
[385816933,1758055913395,-400.0,0.00032054,6]
[385816934,1758055913404,-977.81,0.00032054,6]
[385816935,1758055913413,-487.61,0.00032054,6]
[385816936,1758055913423,-493.83,0.00032054,6]
[385816937,1758055913432,-400.0,0.00032054,6]
[385816938,1758055913442,-400.0,0.00032054,6]
[385816939,1758055913451,-439.87,0.00032054,6]
[385816940,1758055913460,-400.0,0.00032054,6]
[385816941,1758055913470,-572.71,0.00032054,6]
[385816942,1758055913479,-504.8,0.00032054,6]
[385816943,1758055913488,-601.77,0.00032054,6]
[385816944,1758055913498,-400.0,0.00032054,6]
[385816945,1758055913507,-400.0,0.00032054,6]
[385816946,1758055913517,-400.0,0.00032054,6]
[385816947,1758055913526,-400.0,0.00032054,6]
[385816948,1758055913535,-412.65,0.00032054,6]
[385816949,1758055913544,-400.0,0.00032054,6]
[385816950,1758055913553,-496.77,0.00032054,6]
[385816951,1758055913562,-400.0,0.00032054,6]
[385816952,1758055913572,-400.0,0.00032054,6]
[385816953,1758055913581,-400.0,0.00032054,6]
[385816954,1758055913591,-400.0,0.00032054,6]
[385816955,1758055913600,-1174.65,0.00032054,6]
[385816956,1758055913609,-400.0,0.00032054,6]
[385816957,1758055913619,-400.0,0.00032054,6]
[385816958,1758055913629,-482.53,0.00032054,6]
[385816959,1758055913638,-512.06,0.00032054,6]
[385816960,1758055913647,-400.0,0.00032054,6]
[385816961,1758055913656,-400.0,0.00032054,6]
[385816962,1758055913666,-552.22,0.00032054,6]
[385816963,1758055913676,-400.0,0.00032054,6]
[385816964,1758055913685,-400.0,0.00032054,6]
[385816965,1758055913695,-404.94,0.00032054,6]
[385816966,1758055913704,-400.0,0.00032054,6]
[385816967,1758055913714,-829.35,0.00032054,5]
[385816968,1758055913724,-400.0,0.00032054,6]
[385816969,1758055913733,-400.0,0.00032054,6]
[385816970,1758055913742,-447.21,0.00032054,6]
[385816971,1758055913752,-400.0,0.00032054,6]
[385816972,1758055913761,-1534.55,0.00032054,6]
[385816973,1758055913770,-582.44,0.00032054,6]
[385816974,1758055913780,-439.97,0.00032054,6]
[385816975,1758055913789,-520.07,0.00032054,6]
[385816976,1758055913799,-436.33,0.00032054,6]
[385816977,1758055913808,-476.19,0.00032054,6]
[385816978,1758055913818,-400.0,0.00032054,6]
[385816979,1758055913827,-362.31642774,0.00032054,6]
[385816980,1758055913837,-2652.66,0.00032054,6]
[385816981,1758055913846,-400.0,0.00032054,6]
[385816982,1758055913856,-851.33,0.00032054,6]
[385816983,1758055913865,-400.0,0.00032054,6]
[385816984,1758055913874,-400.0,0.00032054,6]
[385816985,1758055913884,-400.0,0.00032054,6]
[385816986,1758055913894,-385.62728541,0.00032054,6]
[385816987,1758055913903,-400.0,0.00032054,6]
[385816988,1758055913912,-712.67,0.00032054,6]
[385816989,1758055913922,-441.66,0.00032054,6]
[385816990,1758055913931,-606.89,0.00032054,6]
[385816991,1758055913941,-400.0,0.00032054,6]
[385816992,1758055913951,-400.0,0.00032054,6]
[385816993,1758055913962,-400.0,0.00032054,6]
[385816994,1758055913971,-589.15,0.00032054,6]
[385816995,1758055913981,-400.0,0.00032054,6]
[385816996,1758055913991,-491.06,0.00032054,6]
[385816997,1758055914003,-643.54,0.00032054,6]
[385816998,1758055914012,-531.4,0.00032054,6]
[385816999,1758055914021,-716.44,0.00032054,6]
[385817000,1758055914032,-441.09,0.00032054,6]
[385817001,1758055914042,-498.56,0.00032054,6]
[385817002,1758055914053,-400.0,0.00032054,6]
[385817003,1758055914063,-400.0,0.00032054,6]
[385817004,1758055914074,-692.32,0.00032054,6]
[385817005,1758055914086,-3193.35,0.00032054,6]
[385817006,1758055914097,-400.0,0.00032054,6]
[385817007,1758055914106,-400.0,0.00032054,6]
[385817008,1758055914116,-559.39,0.00032054,6]
[385817009,1758055914125,-994.07,0.00032054,6]
[385817010,1758055914135,-430.31,0.00032054,6]
[385817011,1758055914145,-400.0,0.00032054,6]
[385817012,1758055914155,-412.75,0.00032054,6]
[385817013,1758055914166,-414.15,0.00032054,6]
[385817014,1758055914175,-400.0,0.00032054,6]
[385817015,1758055914184,-739.18,0.00032054,6]
[385817016,1758055914193,-400.0,0.00032054,6]
[385817017,1758055914202,-400.0,0.00032054,6]
[385817018,1758055914212,-400.0,0.00032054,6]
[385817019,1758055914222,-377.80550768,0.00032054,6]
[385817020,1758055914231,-1559.48,0.00032054,6]
[385817021,1758055914241,-400.0,0.00032054,6]
[385817022,1758055914250,-400.0,0.00032054,6]
[385817023,1758055914261,-400.0,0.00032054,6]
[385817024,1758055914270,-400.0,0.00032054,6]
[385817025,1758055914279,-542.77,0.00032054,6]
[385817026,1758055914289,-472.62264848,0.00032054,6]
[385817027,1758055914299,-400.0,0.00032054,6]
[385817028,1758055914308,-400.0,0.00032054,6]
[385817029,1758055914318,-400.0,0.00032054,6]
[385817030,1758055914327,-400.0,0.00032054,6]
[385817031,1758055914337,-582.39,0.00032054,6]
[385817032,1758055914349,-479.79,0.00032054,6]
[385817033,1758055914361,-400.0,0.00032054,6]
[385817034,1758055914370,-532.53,0.00032054,6]
[385817035,1758055914380,-400.0,0.00032054,6]
[385817036,1758055914391,-619.12,0.00032054,6]
[385817037,1758055914400,-400.0,0.00032054,6]
[385817038,1758055914410,-3974.25,0.00032054,6]
[385817039,1758055914419,-441.55,0.00032054,6]
[385817040,1758055914429,-400.0,0.00032054,6]
[385817041,1758055914439,-563.92,0.00032054,6]
[385817042,1758055914449,-400.0,0.00032054,6]
[385817043,1758055914457,-400.0,0.00032054,6]
[385817044,1758055914467,-548.54,0.00032054,6]
[385817045,1758055914476,-400.0,0.00032054,6]
[385817046,1758055914486,-421.81,0.00032054,6]
[385817047,1758055914495,-400.0,0.00032054,6]
[385817048,1758055914504,-400.0,0.00032054,6]
[385817049,1758055914516,-518.36,0.00032054,6]
[385817050,1758055914526,-400.0,0.00032054,6]
[385817051,1758055914536,-510.5,0.00032054,6]
[385817052,1758055914545,-400.0,0.00032054,6]
[385817053,1758055914554,-701.31,0.00032054,6]
[385817054,1758055914564,-400.0,0.00032054,6]
[385817055,1758055914573,-400.0,0.00032054,6]
[385817056,1758055914584,-400.0,0.00032054,6]
[385817057,1758055914594,-400.0,0.00032054,6]
[385817058,1758055914604,-410.08934356,0.00032054,6]
[385817059,1758055914619,-415.13,0.00032054,6]
[385817060,1758055914635,-400.0,0.00032054,6]
[385817061,1758055914644,-636.08,0.00032054,6]
[385817062,1758055914653,-400.0,0.00032054,6]
[385817063,1758055914663,-509.49,0.00032054,6]
[385817064,1758055914673,-400.0,0.00032054,6]
[385817065,1758055914682,-400.0,0.00032054,6]
[385817066,1758055914692,-501.58,0.00032054,6]
[385817067,1758055914702,-400.0,0.00032054,6]
[385817068,1758055914711,-400.0,0.00032054,6]
[385817069,1758055914721,-400.0,0.00032054,6]
[385817070,1758055914730,-400.0,0.00032054,6]
[385817071,1758055914739,-400.0,0.00032054,6]
[385817072,1758055914749,-1169.89,0.00032054,6]
[385817073,1758055914758,-400.0,0.00032054,6]
[385817074,1758055914767,-315.92256466,0.00032054,6]
[385817075,1758055914777,-306.51069211,0.00032054,6]
[385817076,1758055914786,-420.32,0.00032054,6]
[385817077,1758055914795,-400.0,0.00032054,6]
[385817078,1758055914805,-400.0,0.00032054,6]
[385817079,1758055914815,-355.72404127,0.00032054,6]
[385817080,1758055914824,-542.73211177,0.00032054,6]
[385817081,1758055914834,-400.0,0.00032054,6]
[385817082,1758055914844,-400.0,0.00032054,6]
[385817083,1758055914854,-400.0,0.00032054,6]
[385817084,1758055914863,-400.0,0.00032054,6]
[385817085,1758055914873,-515.27,0.00032054,6]
[385817086,1758055914883,-400.0,0.00032054,6]
[385817087,1758055914892,-625.17,0.00032054,6]
[385817088,1758055914901,-400.0,0.00032054,6]
[385817089,1758055914911,-400.0,0.00032054,6]
[385817090,1758055914920,-439.62,0.00032054,6]
[385817091,1758055914931,-400.0,0.00032054,6]
[385817092,1758055914942,-400.0,0.00032054,6]
[385817093,1758055914952,-511.44,0.00032054,6]
[385817094,1758055914962,-735.9,0.00032054,6]
[385817095,1758055914973,-1007.96,0.00032054,6]
[385817096,1758055914983,-400.0,0.00032054,6]
[385817097,1758055914994,-400.0,0.00032054,6]
[385817098,1758055915004,-457.27,0.00032054,6]
[385817099,1758055915014,-468.84,0.00032054,6]
[385817100,1758055915024,-539.99,0.00032054,6]
[385817101,1758055915034,-592.52,0.00032054,6]
[385817102,1758055915043,-414.16,0.00032054,6]
[385817103,1758055915053,-431.48,0.00032054,6]
[385817104,1758055915062,-400.0,0.00032054,6]
[385817105,1758055915072,-400.0,0.00032054,6]
[385817106,1758055915082,-459.27,0.00032054,6]
[385817107,1758055915092,-400.0,0.00032054,6]
[385817108,1758055915102,-400.0,0.00032054,6]
[385817109,1758055915111,-952.83,0.00032054,6]
[385817110,1758055915121,-714.98,0.00032054,6]
[385817111,1758055915131,-400.0,0.00032054,6]
[385817112,1758055915141,-946.11,0.00032054,6]
[385817113,1758055915150,-2413.87,0.00032054,6]
[385817114,1758055915160,-502.49,0.00032054,6]
[385817115,1758055915170,-525.48,0.00032054,6]
[385817116,1758055915180,-400.0,0.00032054,6]
[385817117,1758055915189,-528.5,0.00032054,6]
[385817118,1758055915199,-485.03,0.00032054,6]
[385817119,1758055915209,-499.88,0.00032054,6]
[385817120,1758055915219,-634.51,0.00032054,6]
[385817121,1758055915229,-300.0,0.00032054,6]
[385817122,1758055915239,-470.05271038,0.00032054,6]
[385817123,1758055915250,-632.16,0.00032054,6]
[385817124,1758055915260,-400.0,0.00032054,6]
[385817125,1758055915271,-885.28,0.00032054,6]
[385817126,1758055915282,-400.0,0.00032054,6]
[385817127,1758055915294,-472.66,0.00032054,6]
[385817128,1758055915305,-400.0,0.00032054,6]
[385817129,1758055915315,-458.62,0.00032054,6]
[385817130,1758055915325,-400.0,0.00032054,6]
[385817131,1758055915335,-989.12,0.00032054,6]
[385817132,1758055915347,-400.0,0.00032054,6]
[385817133,1758055915358,-432.05,0.00032054,6]
[385817134,1758055915368,-398.98059339,0.00032054,6]
[385817135,1758055915380,-400.0,0.00032054,6]
[385817136,1758055915392,-400.0,0.00032054,6]
[385817137,1758055915403,-347.08596034,0.00032054,6]
[385817138,1758055915416,-566.3,0.00032054,6]
[385817139,1758055915426,-403.92,0.00032054,6]
[385817140,1758055915439,-1276.01,0.00032054,6]
[385817141,1758055915449,-400.0,0.00032054,6]
[385817142,1758055915459,-400.0,0.00032054,6]
[385817143,1758055915469,-400.0,0.00032054,6]
[385817144,1758055915479,-400.0,0.00032054,6]
[385817145,1758055915489,-400.0,0.00032054,6]
[385817146,1758055915500,-418.98,0.00032054,6]
[385817147,1758055915511,-2326.43,0.00032054,6]
[385817148,1758055915524,-400.0,0.00032054,6]
[385817149,1758055915535,-538.32,0.00032054,6]
[385817150,1758055915545,-400.0,0.00032054,6]
[385817151,1758055915555,-579.99,0.00032054,6]
[385817152,1758055915565,-400.0,0.00032054,6]
[385817153,1758055915575,-400.0,0.00032054,6]
[385817154,1758055915585,-400.0,0.00032054,6]
[385817155,1758055915595,-1109.01,0.00032054,6]
[385817156,1758055915605,-400.0,0.00032054,6]
[385817157,1758055915615,-867.79,0.00032054,6]
[385817158,1758055915625,-1132.05,0.00032054,6]
[385817159,1758055915635,-400.0,0.00032054,6]
[385817160,1758055915645,-1010.91,0.00032054,6]
[385817161,1758055915655,-449.54,0.00032054,6]
[385817162,1758055915664,-662.74,0.00032054,6]
[385817163,1758055915674,-533.65,0.00032054,6]
[385817164,1758055915684,-400.0,0.00032054,6]
[385817165,1758055915694,-400.0,0.00032054,6]
[385817166,1758055915704,-400.0,0.00032054,6]
[385817167,1758055915714,-648.06,0.00032054,6]
[385817168,1758055915724,-1125.68,0.00032054,6]
[385817169,1758055915734,-539.15,0.00032054,6]
[385817170,1758055915745,-400.0,0.00032054,6]
[385817171,1758055915755,-493.22,0.00032054,6]
[385817172,1758055915764,-589.24,0.00032054,6]
[385817173,1758055915774,-624.32,0.00032054,6]
[385817174,1758055915784,-400.0,0.00032054,6]
[385817175,1758055915794,-798.32,0.00032054,6]
[385817176,1758055915804,-1260.04,0.00032054,6]
[385817177,1758055915814,-623.88,0.00032054,6]
[385817178,1758055915824,-400.0,0.00032054,6]
[385817179,1758055915834,-540.9,0.00032054,6]
[385817180,1758055915844,-400.0,0.00032054,6]
[385817181,1758055915854,-576.24,0.00032054,6]
[385817182,1758055915863,-251.60966714,0.00032054,6]
[385817183,1758055915873,-483.13,0.00032054,6]
[385817184,1758055915882,-1873.62,0.00032054,6]
[385817185,1758055915892,-619.08,0.00032054,6]
[385817186,1758055915902,-483.51,0.00032054,6]
[385817187,1758055915912,-400.0,0.00032054,6]
[385817188,1758055915921,-684.05,0.00032054,6]
[385817189,1758055915931,-832.27,0.00032054,6]
[385817190,1758055915941,-3866.02,0.00032054,6]
[385817191,1758055915951,-400.0,0.00032054,6]
[385817192,1758055915961,-400.0,0.00032054,6]
[385817193,1758055915971,-1080.44,0.00032054,6]
[385817194,1758055915981,-400.0,0.00032054,6]
[385817195,1758055915991,-400.0,0.00032054,6]
[385817196,1758055916000,-400.0,0.00032054,6]
[385817197,1758055916011,-400.0,0.00032054,6]
[385817198,1758055916021,-400.0,0.00032054,6]
[385817199,1758055916031,-400.0,0.00032054,6]
[385817200,1758055916041,-400.0,0.00032054,6]
[385817201,1758055916050,-539.06,0.00032054,6]
[385817202,1758055916060,-603.43,0.00032054,6]
[385817203,1758055916070,-674.22,0.00032054,6]
[385817204,1758055916080,-881.46,0.00032054,6]
[385817205,1758055916089,-416.64,0.00032054,6]
[385817206,1758055916099,-240.30078527,0.00032054,6]
[385817207,1758055916109,-456.38,0.00032054,6]
[385817208,1758055916119,-594.86,0.00032054,6]
[385817209,1758055916129,-500.02,0.00032054,6]
[385817210,1758055916139,-4462.76,0.00032054,6]
[385817211,1758055916148,-416.47,0.00032054,6]
[385817212,1758055916158,-691.5,0.00032054,6]
[385817213,1758055916167,-863.73,0.00032054,6]
[385817214,1758055916177,-400.0,0.00032054,6]
[385817215,1758055916187,-400.0,0.00032054,6]
[385817216,1758055916198,-820.55,0.00032054,6]
[385817217,1758055916208,-934.84,0.00032054,6]
[385817218,1758055916218,-400.0,0.00032054,6]
[385817219,1758055916228,-1000.0,0.00032054,6]
[385817220,1758055916238,-400.0,0.00032054,6]
[385817221,1758055916248,-400.0,0.00032054,6]
[385817222,1758055916257,-423.92,0.00032054,6]
[385817223,1758055916267,-400.0,0.00032054,6]
[385817224,1758055916276,-559.15,0.00032054,6]
[385817225,1758055916287,-600.6,0.00032054,6]
[385817226,1758055916297,-469.74751533,0.00032054,6]
[385817227,1758055916307,-805.77,0.00032054,6]
[385817228,1758055916317,-400.0,0.00032054,6]
[385817229,1758055916327,-400.0,0.00032054,6]
[385817230,1758055916338,-1316.13,0.00032054,6]
[385817231,1758055916350,-1155.56,0.00032054,6]
[385817232,1758055916362,-400.0,0.00032054,6]
[385817233,1758055916372,-910.36,0.00032054,6]
[385817234,1758055916382,-400.0,0.00032054,6]
[385817235,1758055916392,-400.0,0.00032054,6]
[385817236,1758055916402,-597.27,0.00032054,6]
[385817237,1758055916412,-655.36,0.00032054,6]
[385817238,1758055916423,-465.08,0.00032054,6]
[385817239,1758055916433,-1000.65,0.00032054,6]
[385817240,1758055916443,-2311.18,0.00032054,6]
[385817241,1758055916453,-400.0,0.00032054,6]
[385817242,1758055916465,-1273.95,0.00032054,6]
[385817243,1758055916474,-471.4,0.00032054,6]
[385817244,1758055916487,-846.63,0.00032054,6]
[385817245,1758055916496,-400.0,0.00032054,6]
[385817246,1758055916508,-560.78,0.00032054,6]
[385817247,1758055916519,-400.0,0.00032054,6]
[385817248,1758055916528,-14098.53,0.00032054,6]
[385817249,1758055916539,-937.69,0.00032054,6]
[385817250,1758055916549,-400.0,0.00032054,6]
[385817251,1758055916559,-400.0,0.00032054,6]
[385817252,1758055916570,-503.05,0.00032054,6]
[385817253,1758055916581,-553.78,0.00032054,6]
[385817254,1758055916590,-400.0,0.00032054,6]
[385817255,1758055916601,-400.0,0.00032054,6]
[385817256,1758055916611,-567.68,0.00032054,6]
[385817257,1758055916621,-824.87,0.00032054,6]
[385817258,1758055916631,-400.0,0.00032054,6]
[385817259,1758055916642,-526.12,0.00032054,6]
[385817260,1758055916653,-400.0,0.00032054,6]
[385817261,1758055916664,-400.0,0.00032054,6]
[385817262,1758055916673,-400.0,0.00032054,6]
[385817263,1758055916684,-400.0,0.00032054,6]
[385817264,1758055916694,-2437.93,0.00032054,6]
[385817265,1758055916704,-756.47,0.00032054,6]
[385817266,1758055916715,-400.0,0.00032054,6]
[385817267,1758055916724,-661.2,0.00032054,6]
[385817268,1758055916735,-542.28,0.00032054,6]
[385817269,1758055916744,-967.74,0.00032054,6]
[385817270,1758055916755,-522.49836996,0.00032054,6]
[385817271,1758055916766,-780.22,0.00032054,6]
[385817272,1758055916776,-400.0,0.00032054,6]
[385817273,1758055916787,-934.86,0.00032054,6]
[385817274,1758055916797,-400.0,0.00032054,6]
[385817275,1758055916807,-471.94,0.00032054,6]
[385817276,1758055916817,-400.0,0.00032054,6]
[385817277,1758055916827,-3476.13,0.00032054,6]
[385817278,1758055916837,-1084.85,0.00032054,6]
[385817279,1758055916848,-1066.11,0.00032054,6]
[385817280,1758055916858,-400.0,0.00032054,6]
[385817281,1758055916867,-882.36,0.00032054,6]
[385817282,1758055916877,-933.57,0.00032054,6]
[385817283,1758055916888,-593.88,0.00032054,6]
[385817284,1758055916898,-1071.43,0.00032054,6]
[385817285,1758055916909,-400.0,0.00032054,6]
[385817286,1758055916920,-400.0,0.00032054,6]
[385817287,1758055916930,-748.66,0.00032054,6]
[385817288,1758055916940,-400.0,0.00032054,6]
[385817289,1758055916949,-411.01587404,0.00032054,6]
[385817290,1758055916959,-400.0,0.00032054,6]
[385817291,1758055916969,-451.23,0.00032054,6]
[385817292,1758055916980,-400.0,0.00032054,6]
[385817293,1758055916990,-400.0,0.00032054,6]
[385817294,1758055917001,-493.33,0.00032054,6]
[385817295,1758055917011,-669.04,0.00032054,6]
[385817296,1758055917021,-400.0,0.00032054,6]
[385817297,1758055917033,-400.0,0.00032054,6]
[385817298,1758055917042,-560.66,0.00032054,6]
[385817299,1758055917052,-400.0,0.00032054,6]
[385817300,1758055917062,-673.15,0.00032054,6]
[385817301,1758055917071,-735.64,0.00032054,6]
[385817302,1758055917082,-400.0,0.00032054,6]
[385817303,1758055917094,-400.0,0.00032054,6]
[385817304,1758055917104,-400.0,0.00032054,6]
[385817305,1758055917115,-400.0,0.00032054,6]
[385817306,1758055917125,-468.22,0.00032054,6]
[385817307,1758055917137,-400.0,0.00032054,6]
[385817308,1758055917147,-1125.3,0.00032054,6]
[385817309,1758055917159,-400.0,0.00032054,6]
[385817310,1758055917171,-552.42,0.00032054,6]
[385817311,1758055917182,-400.0,0.00032054,6]
[385817312,1758055917458,-909.09,0.00032054,6]
[385817313,1758055917484,-853.45,0.00032054,6]
[385817314,1758055917494,-527.01,0.00032054,6]
[385817315,1758055917504,-401.89,0.00032054,6]
[385817316,1758055917513,-400.0,0.00032054,6]
[385817317,1758055917523,-443.52,0.00032054,6]
[385817318,1758055917532,-852.14,0.00032054,6]
[385817319,1758055917542,-400.0,0.00032054,6]
[385817320,1758055917551,-479.26,0.00032054,6]
[385817321,1758055917561,-1176.21,0.00032054,6]
[385817322,1758055917571,-400.0,0.00032054,6]
[385817323,1758055917583,-400.0,0.00032054,6]
[385817324,1758055917593,-4365.82,0.00032054,6]
[385817325,1758055917602,-1339.24,0.00032054,6]
[385817326,1758055917612,-590.86,0.00032054,6]
[385817327,1758055917622,-494.7,0.00032054,6]
[385817328,1758055917633,-400.0,0.00032054,6]
[385817329,1758055917643,-400.0,0.00032054,6]
[385817330,1758055917653,-995.2,0.00032054,6]
[385817331,1758055917663,-400.0,0.00032054,6]
[385817332,1758055917672,-588.68,0.00032054,6]